fUST/lending_fUST_20251221
["ID","MTS","AMOUNT","RATE_DAILY","PERIOD"]
[399344455,1766315186087,168.468625,0.00032877,31]
[399344456,1766315186386,168.468625,0.00032877,31]
[399344457,1766315187304,168.468625,0.00032877,31]
[399344458,1766315187599,168.468625,0.00032877,31]
[399344459,1766315187901,168.468625,0.00032877,31]
[399344460,1766315188211,168.468625,0.00032877,31]
[399344461,1766315188786,168.468625,0.00032877,31]
[399344462,1766315189083,168.468625,0.00032877,31]
[399344463,1766315189381,168.468625,0.00032877,31]
[399344464,1766315189676,168.468625,0.00032877,31]
[399344465,1766315190257,168.468625,0.00032877,31]
[399344466,1766315190565,168.468625,0.00032877,31]
[399344467,1766315191189,168.468625,0.00032877,31]
[399344468,1766315191483,168.468625,0.00032877,31]
[399344469,1766315201797,1463.19,8.619e-05,2]
[399344470,1766315202183,2926.38,9.03e-05,2]
[399344471,1766315202598,416.5841143,9.44e-05,2]
[399344472,1766315202620,3972.9858857,9.44e-05,2]
[399344473,1766315205257,151.0,0.00032877,31]
[399344474,1766315205572,168.039669,0.00032877,31]
[399344480,1766315229536,290.487302,0.00032877,31]
[399344481,1766315279096,-300.0,9.634e-05,2]
[399344482,1766315279126,-500.0,9.635e-05,2]
[399344483,1766315279153,-184.76578047,9.635e-05,2]
[399344484,1766315279180,-500.0,9.635e-05,2]
[399344485,1766315279207,-500.0,9.635e-05,2]
[399344486,1766315279234,-500.0,9.635e-05,2]
[399344487,1766315279263,-500.0,9.635e-05,2]
[399344488,1766315279292,-500.0,9.635e-05,2]
[399344489,1766315279321,-500.0,9.635e-05,2]
[399344490,1766315279351,-500.0,9.635e-05,2]
[399344491,1766315279381,-500.0,9.635e-05,2]
[399344492,1766315280121,1360.77,8.67e-05,2]
[399344493,1766315283331,411.11,3.8e-06,2]
[399344494,1766315283604,411.11,3.8e-06,2]
[399344495,1766315290707,999.0,0.00032876,120]
[399344496,1766315294445,151.0,0.00032877,31]
[399344497,1766315302352,740.786412,0.00032877,31]
[399344498,1766315302761,740.786412,0.00032877,31]
[399344499,1766315303671,740.786412,0.00032877,31]
[399344500,1766315303716,740.786412,0.00032877,31]
[399344501,1766315303750,157.25368,0.00032877,31]
[399344502,1766315304443,157.25368,0.00032877,31]
[399344503,1766315304481,740.786412,0.00032877,31]
[399344504,1766315304512,157.25368,0.00032877,31]
[399344505,1766315304610,740.786412,0.00032877,31]
[399344506,1766315304648,157.25368,0.00032877,31]
[399344507,1766315304908,740.786412,0.00032877,31]
[399344508,1766315305200,740.786412,0.00032877,31]
[399344509,1766315305353,157.25368,0.00032877,31]
[399344510,1766315305824,740.786412,0.00032877,31]
[399344511,1766315305958,157.25368,0.00032877,31]
[399344512,1766315306134,740.786412,0.00032877,31]
[399344513,1766315306251,157.25368,0.00032877,31]
[399344514,1766315306427,740.786412,0.00032877,31]
[399344515,1766315306575,157.25368,0.00032877,31]
[399344516,1766315306723,740.786412,0.00032877,31]
[399344517,1766315307153,157.25368,0.00032877,31]
[399344518,1766315307486,740.786412,0.00032877,31]
[399344519,1766315307522,157.25368,0.00032877,31]
[399344520,1766315307784,157.25368,0.00032877,31]
[399344521,1766315307819,740.786412,0.00032877,31]
[399344522,1766315308084,157.25368,0.00032877,31]
[399344523,1766315308116,740.786412,0.00032877,31]
[399344524,1766315308416,740.786412,0.00032877,31]
[399344525,1766315308828,157.25368,0.00032877,31]
[399344526,1766315309127,157.25368,0.00032877,31]
[399344527,1766315309457,157.25368,0.00032877,31]
[399344528,1766315309750,157.25368,0.00032877,31]
[399344529,1766315310436,-2721.54,9.083e-05,2]
[399344530,1766315310466,-474.62,9.496e-05,2]
[399344531,1766315310907,160.846283,0.00032877,31]
[399344532,1766315312427,374.729196,0.00032877,31]
[399344533,1766315312688,374.729196,0.00032877,31]
[399344534,1766315312989,374.729196,0.00032877,31]
[399344535,1766315313497,374.729196,0.00032877,31]
[399344536,1766315313916,374.729196,0.00032877,31]
[399344537,1766315314213,374.729196,0.00032877,31]
[399344538,1766315315019,374.729196,0.00032877,31]
[399344539,1766315315062,374.729196,0.00032877,31]
[399344540,1766315315412,374.729196,0.00032877,31]
[399344541,1766315315729,374.729196,0.00032877,31]
[399344542,1766315316014,374.729196,0.00032877,31]
[399344543,1766315316302,374.729196,0.00032877,31]
[399344544,1766315316917,374.729196,0.00032877,31]
[399344545,1766315317200,374.729196,0.00032877,31]
[399344546,1766315317487,374.729196,0.00032877,31]
[399344547,1766315317769,374.729196,0.00032877,31]
[399344548,1766315334656,-3607.69,9.496e-05,2]
[399344549,1766315334684,-500.0,9.634e-05,2]
[399344550,1766315334712,-500.0,9.634e-05,2]
[399344551,1766315334740,-284.63,9.634e-05,2]
[399344552,1766315351183,192.0,0.00032466,53]
[399344553,1766315351434,234.0,0.00030822,42]
[399344554,1766315351685,184.0,0.00029726,36]
[399344555,1766315352437,209.0,0.0002863,30]
[399344556,1766315357241,-300.0,9.633e-05,2]
[399344557,1766315360076,218.06177,0.00032877,31]
[399344558,1766315368415,-1265.74,8.677e-05,2]
[399344559,1766315368445,-2531.48,9.09e-05,2]
[399344560,1766315375655,400.560756,0.00032877,31]
[399344561,1766315375970,400.560756,0.00032877,31]
[399344562,1766315376271,400.560756,0.00032877,31]
[399344563,1766315376569,400.560756,0.00032877,31]
[399344564,1766315377200,400.560756,0.00032877,31]
[399344565,1766315377490,400.560756,0.00032877,31]
[399344566,1766315377792,400.560756,0.00032877,31]
[399344567,1766315378104,400.560756,0.00032877,31]
[399344568,1766315378704,400.560756,0.00032877,31]
[399344569,1766315378796,-3797.23,9.503e-05,2]
[399344570,1766315379006,400.560756,0.00032877,31]
[399344571,1766315379322,400.560756,0.00032877,31]
[399344572,1766315379621,400.560756,0.00032877,31]
[399344573,1766315380201,400.560756,0.00032877,31]
[399344574,1766315380490,400.560756,0.00032877,31]
[399344575,1766315380785,400.560756,0.00032877,31]
[399344576,1766315381168,400.560756,0.00032877,31]
[399344577,1766315386281,262.823549,0.00032877,31]
[399344578,1766315386589,262.823549,0.00032877,31]
[399344579,1766315386970,262.823549,0.00032877,31]
[399344580,1766315387264,262.823549,0.00032877,31]
[399344581,1766315387851,262.823549,0.00032877,31]
[399344582,1766315388162,262.823549,0.00032877,31]
[399344583,1766315388588,262.823549,0.00032877,31]
[399344584,1766315388913,262.823549,0.00032877,31]
[399344585,1766315389677,262.823549,0.00032877,31]
[399344586,1766315390021,262.823549,0.00032877,31]
[399344587,1766315390298,262.823549,0.00032877,31]
[399344588,1766315390906,262.823549,0.00032877,31]
[399344589,1766315391662,262.823549,0.00032877,31]
[399344590,1766315391942,262.823549,0.00032877,31]
[399344591,1766315392253,262.823549,0.00032877,31]
[399344592,1766315392539,262.823549,0.00032877,31]
[399344593,1766315407709,-300.0,9.633e-05,2]
[399344594,1766315407737,-300.0,9.633e-05,2]
[399344595,1766315418228,-1200.0,9.633e-05,2]
[399344596,1766315418257,-574.12855637,9.633e-05,2]
[399344608,1766315435216,909.728007,0.00032877,31]
[399344609,1766315435300,-303.21953244,9.633e-05,2]
[399344610,1766315435334,-190.44898552,9.633e-05,2]
[399344611,1766315435368,-500.0,9.633e-05,2]
[399344612,1766315435647,-500.0,9.633e-05,2]
[399344613,1766315435693,-500.0,9.633e-05,2]
[399344614,1766315435722,-500.0,9.633e-05,2]
[399344615,1766315435752,-500.0,9.633e-05,2]
[399344616,1766315435782,-500.0,9.633e-05,2]
[399344617,1766315435812,-500.0,9.633e-05,2]
[399344618,1766315435842,-500.0,9.633e-05,2]
[399344619,1766315435871,-500.0,9.633e-05,2]
[399344620,1766315436024,-500.0,9.633e-05,2]
[399344621,1766315436055,-500.0,9.633e-05,2]
[399344622,1766315436086,-500.0,9.633e-05,2]
[399344623,1766315436115,-500.0,9.633e-05,2]
[399344624,1766315436143,-500.0,9.633e-05,2]
[399344625,1766315436172,-500.0,9.633e-05,2]
[399344626,1766315436202,-392.30109811,9.633e-05,2]
[399344627,1766315436231,-500.0,9.633e-05,2]
[399344628,1766315436260,-500.0,9.633e-05,2]
[399344629,1766315436288,-500.0,9.633e-05,2]
[399344630,1766315436351,909.728007,0.00032877,31]
[399344631,1766315436388,-500.0,9.633e-05,2]
[399344632,1766315436418,-500.0,9.633e-05,2]
[399344633,1766315436452,-500.0,9.633e-05,2]
[399344634,1766315436490,-500.0,9.633e-05,2]
[399344635,1766315436518,-250.0,9.633e-05,2]
[399344636,1766315436548,-250.0,9.633e-05,2]
[399344637,1766315436577,-2226.44209481,9.633e-05,2]
[399344638,1766315436818,909.728007,0.00032877,31]
[399344639,1766315437068,909.728007,0.00032877,31]
[399344640,1766315437397,909.728007,0.00032877,31]
[399344641,1766315437452,909.728007,0.00032877,31]
[399344642,1766315437618,909.728007,0.00032877,31]
[399344643,1766315437931,909.728007,0.00032877,31]
[399344724,1766315439035,909.728007,0.00032877,31]
[399344757,1766315439334,909.728007,0.00032877,31]
[399344789,1766315439629,909.728007,0.00032877,31]
[399344824,1766315439958,909.728007,0.00032877,31]
[399344871,1766315440545,909.728007,0.00032877,31]
[399344907,1766315441139,909.728007,0.00032877,31]
[399344939,1766315441432,909.728007,0.00032877,31]
[399344977,1766315441778,909.728007,0.00032877,31]
[399345829,1766315461286,-1169.09,8.702e-05,2]
[399345830,1766315461316,-2338.17,9.117e-05,2]
[399345831,1766315461604,-3507.26,9.531e-05,2]
[399345832,1766315461632,-500.0,9.633e-05,2]
[399345833,1766315461660,-500.0,9.633e-05,2]
[399345834,1766315461689,-485.49,9.633e-05,2]
[399346295,1766315477103,-300.0,9.632e-05,2]
[399346299,1766315477131,-14.51,9.633e-05,2]
[399346303,1766315477159,-500.0,9.633e-05,2]
[399346307,1766315477186,-500.0,9.633e-05,2]
[399346311,1766315477215,-500.0,9.633e-05,2]
[399346314,1766315477242,-500.0,9.633e-05,2]
[399346318,1766315477270,-500.0,9.633e-05,2]
[399346322,1766315477296,-243.833,9.633e-05,2]
[399346326,1766315477325,-500.0,9.633e-05,2]
[399346330,1766315477352,-500.0,9.633e-05,2]
[399346334,1766315477382,-500.0,9.633e-05,2]
[399346338,1766315477410,-383.324,9.633e-05,2]
[399346751,1766315486978,3582.02534779,0.00032,30]
[399346975,1766315492277,160.977573,0.00032877,31]
[399347008,1766315492572,160.977573,0.00032877,31]
[399347041,1766315492860,160.977573,0.00032877,31]
[399347074,1766315493145,160.977573,0.00032877,31]
[399347143,1766315493777,160.977573,0.00032877,31]
[399347177,1766315494074,160.977573,0.00032877,31]
[399347210,1766315494367,160.977573,0.00032877,31]
[399347243,1766315494666,160.977573,0.00032877,31]
[399347310,1766315495269,160.977573,0.00032877,31]
[399347342,1766315495566,160.977573,0.00032877,31]
[399347384,1766315495947,160.977573,0.00032877,31]
[399347415,1766315496237,160.977573,0.00032877,31]
[399347508,1766315497143,160.977573,0.00032877,31]
[399347538,1766315497434,160.977573,0.00032877,31]
[399347569,1766315497723,160.977573,0.00032877,31]
[399347599,1766315498342,160.977573,0.00032877,31]
[399348084,1766315503025,-116.676,9.633e-05,2]
[399348088,1766315503055,-500.0,9.633e-05,2]
[399348092,1766315503085,-500.0,9.633e-05,2]
[399348096,1766315503113,-500.0,9.633e-05,2]
[399348101,1766315503143,-500.0,9.633e-05,2]
[399348105,1766315503171,-500.0,9.633e-05,2]
[399348109,1766315503199,-547.12581038,9.633e-05,2]
[399348113,1766315503227,-250.0,9.633e-05,2]
[399348117,1766315503255,-265.49145936,9.633e-05,2]
[399348121,1766315503283,-500.0,9.633e-05,2]
[399348125,1766315503309,-500.0,9.633e-05,2]
[399348129,1766315503336,-141.42346052,9.633e-05,2]
[399348135,1766315503388,-358.57653948,9.633e-05,2]
[399348139,1766315503415,-500.0,9.633e-05,2]
[399348143,1766315503443,-500.0,9.633e-05,2]
[399348147,1766315503474,-500.0,9.633e-05,2]
[399348151,1766315503501,-500.0,9.633e-05,2]
[399348155,1766315503529,-500.0,9.633e-05,2]
[399348159,1766315503556,-511.21944762,9.633e-05,2]
[399348163,1766315503585,-500.0,9.633e-05,2]
[399348167,1766315503612,-500.0,9.633e-05,2]
[399348171,1766315503641,-500.0,9.633e-05,2]
[399348413,1766315506487,174.252,0.00031769,30]
[399349973,1766315523039,-1088.28,8.7e-05,2]
[399349976,1766315523064,-138.74137705,8.765e-05,2]
[399350337,1766315527752,-285.13524881,8.733e-05,2]
[399350440,1766315529729,-181.59919124,8.733e-05,2]
[399350488,1766315530172,151.0,0.00032877,31]
[399350520,1766315530467,151.0,0.00032877,31]
[399350551,1766315530759,151.0,0.00032877,31]
[399350580,1766315531052,151.0,0.00032877,31]
[399350636,1766315531601,-90.30344081,8.733e-05,2]
[399350639,1766315531623,-159.69655919,8.765e-05,2]
[399350643,1766315531655,151.0,0.00032877,31]
[399350668,1766315531912,151.0,0.00032877,31]
[399350696,1766315532205,151.0,0.00032877,31]
[399350723,1766315532494,151.0,0.00032877,31]
[399350780,1766315533526,-155.67,8.765e-05,2]
[399351024,1766315535937,-1036.98975555,8.765e-05,2]
[399351523,1766315541008,-236.0063417,8.765e-05,2]
[399351696,1766315543040,-281.44978733,8.765e-05,2]
[399351868,1766315544672,-1813.24541698,8.765e-05,2]
[399351872,1766315544700,-2176.57,9.114e-05,2]
[399352066,1766315546618,999.0,0.00032876,120]
[399352926,1766315555566,-5000.0,9.434e-05,2]
[399352998,1766315556192,-3264.85,9.529e-05,2]
[399354593,1766315572849,3470.31,9.529e-05,2]
[399354596,1766315572871,1529.69,9.529e-05,2]
[399355671,1766315585635,5000.0,0.00032877,30]
[399356597,1766315595867,1042.9,8.644e-05,2]
[399356622,1766315596286,2085.81,9.056e-05,2]
[399356635,1766315596477,5000.0,9.529e-05,2]
[399356649,1766315596679,341.61,9.467e-05,2]
[399356652,1766315596704,2787.1,9.467e-05,2]
[399358775,1766315619655,5000.0,9.529e-05,2]
[399358942,1766315621853,10000.0,0.00032877,30]
[399361028,1766315643361,2212.91,9.529e-05,2]
[399362546,1766315660493,425.698968,0.00032876,30]
[399362680,1766315668270,155.0,0.0003189,49]
[399362681,1766315668553,189.0,0.00030247,39]
[399362682,1766315668801,231.0,0.00028603,30]
[399362683,1766315674107,976.85,8.631e-05,2]
[399362684,1766315674501,1953.7,9.042e-05,2]
[399362685,1766315675468,2930.55,9.453e-05,2]
[399362737,1766315708536,151.0,0.00032877,31]
[399362738,1766315708818,151.0,0.00032877,31]
[399362739,1766315709109,151.0,0.00032877,31]
[399362740,1766315709637,151.0,0.00032877,31]
[399362741,1766315710003,301.556855,0.00032877,31]
[399362742,1766315723911,151.0,0.00032877,31]
[399362743,1766315724206,151.0,0.00032877,31]
[399362744,1766315724674,151.0,0.00032877,31]
[399362745,1766315724974,151.0,0.00032877,31]
[399362746,1766315725675,151.0,0.00032877,31]
[399362747,1766315725845,151.0,0.00032877,31]
[399362748,1766315726142,151.0,0.00032877,31]
[399362749,1766315726444,151.0,0.00032877,31]
[399362750,1766315726989,340.3178735,9.401e-05,2]
[399362751,1766315754855,963.77,8.614e-05,2]
[399362752,1766315755281,1927.54,9.024e-05,2]
[399362753,1766315758663,907.2821265,9.434e-05,2]
[399362754,1766315758692,1984.0178735,9.434e-05,2]
[399362755,1766315775569,8015.9921265,9.401e-05,2]
[399362756,1766315775592,10000.01,9.401e-05,2]
[399362757,1766315775614,10000.01,9.401e-05,2]
[399362758,1766315775637,9449.8140574,9.401e-05,2]
[399362764,1766315785266,999.0,0.00032876,120]
[399362765,1766315786221,151.0,0.00032877,31]
[399362766,1766315786532,151.0,0.00032877,31]
[399362767,1766315786871,151.0,0.00032877,31]
[399362768,1766315787160,220.874491,0.00032877,31]
[399362775,1766315801938,172.92861962,8.923e-05,2]
[399362777,1766315804075,197.63270813,9.31e-05,2]
[399362780,1766315815050,179.63461485,9.472e-05,2]
[399362781,1766315815073,4376.05916127,9.472e-05,2]
[399362893,1766315837203,924.97,8.66e-05,2]
[399362896,1766315837522,1849.95,9.073e-05,2]
[399362951,1766315846768,2849.03083873,9.472e-05,2]
[399362952,1766315846791,2150.96916127,9.472e-05,2]
[399362958,1766315847999,5000.0,0.00032877,30]
[399363042,1766315862524,-2774.92,9.485e-05,2]
[399363044,1766315862560,-308.80110646,9.504e-05,2]
[399363045,1766315862591,-545.89712324,9.517e-05,2]
[399363046,1766315862621,-500.0,9.533e-05,2]
[399363047,1766315862649,-500.0,9.533e-05,2]
[399363048,1766315862679,-240.7735406,9.533e-05,2]
[399363049,1766315862889,-259.2264594,9.533e-05,2]
[399363050,1766315862919,-500.0,9.533e-05,2]
[399363051,1766315862948,-500.0,9.533e-05,2]
[399363052,1766315862978,-589.23010981,9.533e-05,2]
[399363053,1766315863006,-500.0,9.533e-05,2]
[399363054,1766315863036,-300.0,9.533e-05,2]
[399363087,1766315875069,-5000.0,9.438e-05,2]
[399363094,1766315900742,159.682754,0.00032877,31]
[399363095,1766315903623,151.0,0.00032877,31]
[399363096,1766315903917,151.0,0.00032877,31]
[399363097,1766315904068,151.0,0.00032877,31]
[399363098,1766315904214,151.0,0.00032877,31]
[399363099,1766315904378,151.0,0.00032877,31]
[399363100,1766315904533,176.01472,0.00032877,31]
[399363101,1766315904681,151.0,0.00032877,31]
[399363102,1766315904991,151.0,0.00032877,31]
[399363103,1766315905300,151.0,0.00032877,31]
[399363104,1766315905640,151.0,0.00032877,31]
[399363105,1766315905943,151.0,0.00032877,31]
[399363106,1766315906240,151.0,0.00032877,31]
[399363107,1766315906569,151.0,0.00032877,31]
[399363108,1766315906871,151.0,0.00032877,31]
[399363109,1766315907065,-5000.0,9.437e-05,2]
[399363110,1766315907163,151.0,0.00032877,31]
[399363111,1766315907466,151.0,0.00032877,31]
[399363112,1766315907770,151.0,0.00032877,31]
[399363113,1766315907918,151.0,0.00032877,31]
[399363114,1766315908066,151.0,0.00032877,31]
[399363115,1766315908388,151.0,0.00032877,31]
[399363116,1766315908435,151.0,0.00032877,31]
[399363117,1766315908702,151.0,0.00032877,31]
[399363118,1766315908752,151.0,0.00032877,31]
[399363119,1766315909062,151.0,0.00032877,31]
[399363120,1766315909093,151.0,0.00032877,31]
[399363121,1766315909641,151.0,0.00032877,31]
[399363122,1766315909672,151.0,0.00032877,31]
[399363123,1766315909706,151.0,0.00032877,31]
[399363124,1766315909735,245.145652,0.00032877,31]
[399363125,1766315909983,151.0,0.00032877,31]
[399363126,1766315910278,151.0,0.00032877,31]
[399363127,1766315910593,290.91679,0.00032877,31]
[399363255,1766315923719,-903.82,8.633e-05,2]
[399363256,1766315923749,-1807.65,9.044e-05,2]
[399363257,1766315924051,-5000.0,9.437e-05,2]
[399363258,1766315924430,-2711.47,9.455e-05,2]
[399363259,1766315924460,-500.0,9.533e-05,2]
[399363260,1766315924490,-500.0,9.533e-05,2]
[399363261,1766315924519,-182.51157087,9.533e-05,2]
[399363262,1766315924549,-300.0,9.533e-05,2]
[399363263,1766315924576,-300.0,9.533e-05,2]
[399363612,1766315955221,-5000.0,9.438e-05,2]
[399363613,1766315955280,-1200.0,9.533e-05,2]
[399363614,1766315955309,-300.0,9.533e-05,2]
[399363616,1766315972582,-386.9471591,8.616e-05,2]
[399363617,1766315974711,-261.83091403,8.616e-05,2]
[399363618,1766315976509,-345.94663555,8.616e-05,2]
[399363619,1766315976687,151.0,0.00032877,31]
[399363620,1766315976990,151.0,0.00032877,31]
[399363621,1766315977333,151.0,0.00032877,31]
[399363622,1766315977634,-275.56412896,8.616e-05,2]
[399363623,1766315977666,151.0,0.00032877,31]
[399363624,1766315978234,151.0,0.00032877,31]
[399363625,1766315978353,-3729.71116236,8.616e-05,2]
[399363626,1766315978550,151.0,0.00032877,31]
[399363627,1766315978860,151.0,0.00032877,31]
[399363628,1766315979479,-182.25682745,8.703e-05,2]
[399363629,1766315979511,151.0,0.00032877,31]
[399363630,1766315980652,-322.31467178,8.703e-05,2]
[399363631,1766315983286,-199.02803357,8.703e-05,2]
[399363632,1766315983473,166.0,0.00031315,45]
[399363633,1766315983728,157.0,0.00029671,35]
[399363634,1766315984848,-569.10025964,8.703e-05,2]
[399363635,1766315987040,2540.58767528,8.703e-05,2]
[399363636,1766315987062,2459.41232472,8.703e-05,2]
[399363637,1766315987102,151.0,0.00032877,31]
[399363638,1766315987218,151.0,0.00032877,31]
[399363639,1766315987538,151.0,0.00032877,31]
[399363640,1766315987876,151.0,0.00032877,31]
[399363641,1766315988486,296.2942,0.00032877,31]
[399363642,1766315990436,-172.81535219,8.703e-05,2]
[399363645,1766315991883,-218.85660862,8.703e-05,2]
[399363649,1766315993355,-637.77144976,8.703e-05,2]
[399363657,1766315996199,165.336142,0.00028767,60]
[399363658,1766315996256,842.14,8.605e-05,2]
[399363659,1766315997971,-350.63631067,8.703e-05,2]
[399363664,1766316002903,300.0,8.702e-05,2]
[399363665,1766316003041,5000.0,0.00032877,30]
[399363667,1766316004231,-500.61420668,8.703e-05,2]
[399363668,1766316005751,-170.0,8.702e-05,2]
[399363669,1766316005772,-56.023665,8.703e-05,2]
[399363670,1766316007152,-298.31154285,8.703e-05,2]
[399363671,1766316008648,-187.66479215,8.703e-05,2]
[399363672,1766316008966,-44.62948265,8.703e-05,2]
[399363673,1766316015457,-329.6796504,8.616e-05,2]
[399363674,1766316016985,-157.28195818,8.616e-05,2]
[399363675,1766316019984,-4513.03839142,8.616e-05,2]
[399363676,1766316020021,-307.93321716,8.702e-05,2]
[399363677,1766316020197,-358.06678284,8.702e-05,2]
[399363678,1766316020764,999.0,0.00032876,120]
[399363679,1766316022851,-253.63,8.703e-05,2]
[399363680,1766316027055,195.765928,0.00032877,31]
[399363681,1766316030266,-273.02954409,8.703e-05,2]
[399363682,1766316032370,-245.26981454,8.703e-05,2]
[399363683,1766316034120,-735.91294189,8.616e-05,2]
[399363684,1766316034593,-4264.08705811,8.616e-05,2]
[399363685,1766316034622,-353.61239676,8.702e-05,2]
[399363686,1766316034653,-176.58112331,8.702e-05,2]
[399363687,1766316035047,181.945601,0.00032877,31]
[399363688,1766316035264,151.0,0.00032877,31]
[399363689,1766316035297,181.945601,0.00032877,31]
[399363691,1766316035449,151.0,0.00032877,31]
[399363692,1766316035554,181.945601,0.00032877,31]
[399363693,1766316035736,151.0,0.00032877,31]
[399363694,1766316035873,181.945601,0.00032877,31]
[399363695,1766316036068,151.0,0.00032877,31]
[399363696,1766316036155,181.945601,0.00032877,31]
[399363697,1766316036228,-164.98032726,8.703e-05,2]
[399363698,1766316036357,292.540077,0.00032877,31]
[399363699,1766316036454,181.945601,0.00032877,31]
[399363700,1766316036797,181.945601,0.00032877,31]
[399363701,1766316037099,181.945601,0.00032877,31]
[399363702,1766316037473,181.945601,0.00032877,31]
[399363703,1766316037642,-315.81070845,8.703e-05,2]
[399363704,1766316037800,181.945601,0.00032877,31]
[399363705,1766316038097,181.945601,0.00032877,31]
[399363706,1766316038384,181.945601,0.00032877,31]
[399363707,1766316038673,181.945601,0.00032877,31]
[399363708,1766316038955,181.945601,0.00032877,31]
[399363709,1766316039249,181.945601,0.00032877,31]
[399363710,1766316039277,-201.02879856,8.703e-05,2]
[399363711,1766316039547,181.945601,0.00032877,31]
[399363712,1766316040415,181.945601,0.00032877,31]
[399363713,1766316040452,181.945601,0.00032877,31]
[399363714,1766316040489,181.945601,0.00032877,31]
[399363715,1766316040734,181.945602,0.00032877,31]
[399363716,1766316041290,-501.40641225,8.703e-05,2]
[399363717,1766316043531,-251.79547661,8.703e-05,2]
[399363718,1766316045644,-520.27414172,8.703e-05,2]
[399363719,1766316048851,-163.386481,8.703e-05,2]
[399363720,1766316051303,-230.78617093,8.703e-05,2]
[399363721,1766316052244,-8196.51866015,8.703e-05,2]
[399363722,1766316052355,-340.50966307,8.702e-05,2]
[399363723,1766316052365,-9659.50033693,8.703e-05,2]
[399363724,1766316052379,-10000.01,8.703e-05,2]
[399363725,1766316052393,-828.3752595,8.703e-05,2]
[399363726,1766316052402,-276.26051452,8.875e-05,2]
[399363727,1766316052411,-8895.37422598,8.876e-05,2]
[399363731,1766316066405,-300.0,8.875e-05,2]
[399363732,1766316066451,-9400.01,8.876e-05,2]
[399363733,1766316066529,-10000.01,8.876e-05,2]
[399363735,1766316078669,-466.81530156,8.52e-05,2]
[399363736,1766316080624,-425.92469844,8.52e-05,2]
[399363737,1766316080649,-235.34190551,8.751e-05,2]
[399363738,1766316082308,-1589.39201691,8.751e-05,2]
[399363739,1766316082332,-6821.22596618,8.751e-05,2]
[399363740,1766316088007,151.0,0.00032877,31]
[399363741,1766316088324,151.0,0.00032877,31]
[399363742,1766316088642,151.0,0.00032877,31]
[399363743,1766316088956,151.0,0.00032877,31]
[399363746,1766316098530,-10000.01,8.876e-05,2]
[399363747,1766316098720,-10000.01,8.876e-05,2]
[399363748,1766316106445,174.252,0.00031768,30]
[399363749,1766316109297,-1704.58577402,8.876e-05,2]
[399363750,1766316109327,-300.0,8.876e-05,2]
[399363751,1766316109356,-300.0,8.876e-05,2]
[399363752,1766316109385,-300.0,8.876e-05,2]
[399363753,1766316109414,-300.0,8.876e-05,2]
[399363754,1766316109442,-300.0,8.876e-05,2]
[399363755,1766316109470,-300.0,8.876e-05,2]
[399363756,1766316109500,-300.0,8.876e-05,2]
[399363757,1766316109530,-300.0,8.876e-05,2]
[399363758,1766316109560,-300.0,8.876e-05,2]
[399363759,1766316109594,-300.0,8.876e-05,2]
[399363760,1766316109625,-290.83845196,8.876e-05,2]
[399363761,1766316109824,-9.16154804,8.876e-05,2]
[399363762,1766316125022,-300.0,8.876e-05,2]
[399363763,1766316125053,-300.0,8.876e-05,2]
[399363764,1766316125083,-300.0,8.876e-05,2]